{"text_format":"1","workbook":"xlsx","n_sheets":1,"sheets":["Sheet1"],"not_rendered":{"charts":0,"images":0,"macros":1,"external_links":0,"defined_names":0,"comments":0,"pivot_tables":0},"unopened":[],"bounds":{"document_bytes":16777216,"sheet_cells":100000,"rows_first":2000,"rows_last":500,"rows_between":2000,"halvings":0,"cell_chars":16384,"cell_head_chars":4096},"cells_cut":0,"cells_raw":0,"read":"whole","date_system":"1900"}

{"sheet":"Sheet1","index":0,"n_rows":20,"n_cols":2,"rows_kept":20,"cut":false,"hidden":false,"merged":[]}
[1.41,{"$f":"AdvancedWord(TEXT(A1,\"#.00\"))","v":"Rupees  One and Forty One Paisas Only"}]
[10.41,{"$f":"AdvancedWord(TEXT(A2,\"#.00\"))","v":"Rupees Ten and Forty One Paisas Only"}]
[105.41,{"$f":"AdvancedWord(TEXT(A3,\"#.00\"))","v":"Rupees  One Hundred  Five and Forty One Paisas Only"}]
[1070.4100000000001,{"$f":"AdvancedWord(TEXT(A4,\"#.00\"))","v":"Rupees  One Thousand Seventy and Forty One Paisas Only"}]
[10400.41,{"$f":"AdvancedWord(TEXT(A5,\"#.00\"))","v":"Rupees Ten Thousand  Four Hundred  and Forty One Paisas Only"}]
[104030.41,{"$f":"AdvancedWord(TEXT(A6,\"#.00\"))","v":"Rupees  One Lakh  Four Thousand Thirty and Forty One Paisas Only"}]
[1020500.41,{"$f":"AdvancedWord(TEXT(A7,\"#.00\"))","v":"Rupees Ten Lakh Twenty Thousand  Five Hundred  and Forty One Paisas Only"}]
[10400900.41,{"$f":"AdvancedWord(TEXT(A8,\"#.00\"))","v":"Rupees  One Crore  Four Lakh  Nine Hundred  and Forty One Paisas Only"}]
[120030004.41,{"$f":"AdvancedWord(TEXT(A9,\"#.00\"))","v":"Rupees Twelve Crore Thirty Thousand  Four and Forty One Paisas Only"}]
[1004000700.41,{"$f":"AdvancedWord(TEXT(A10,\"#.00\"))","v":"Rupees  One Arab Forty Lakh  Seven Hundred  and Forty One Paisas Only"}]
[10040600100.41,{"$f":"AdvancedWord(TEXT(A11,\"#.00\"))","v":"Rupees Ten Arab  Four Crore  Six Lakh  One Hundred  and Forty One Paisas Only"}]
[103008000700.41,{"$f":"AdvancedWord(TEXT(A12,\"#.00\"))","v":"Rupees  One Kharab  Three Arab Eighty Lakh  Seven Hundred  and Forty One Paisas Only"}]
[1804000300080.4099,{"$f":"AdvancedWord(TEXT(A13,\"#.00\"))","v":"Rupees Eighteen Kharab  Four Arab  Three Lakh Eighty and Forty One Paisas Only"}]
[10807030200500.4,{"$f":"AdvancedWord(TEXT(A14,\"#.00\"))","v":"Rupees  One Neel  Eight Kharab  Seven Arab  Three Crore  Two Lakh  Five Hundred  and Forty Paisas Only"}]
[100307090040100,{"$f":"AdvancedWord(TEXT(A15,\"#.00\"))","v":"Rupees Ten Neel  Three Kharab  Seven Arab  Nine Crore Forty Thousand  One Hundred  Only"}]
[1005006007009010,{"$f":"AdvancedWord(TEXT(A16,\"#.00\"))","v":"Rupees  One Padma Fifty Kharab  Six Arab Seventy Lakh  Nine Thousand Ten Only"}]
[1.0006700005001E+16,{"$f":"AdvancedWord(TEXT(A17,\"#.00\"))","v":"Rupees Ten Padma Sixty Seven Kharab Fifty Lakh  One Thousand  Only"}]
[1.008430162019E+17,{"$f":"AdvancedWord(TEXT(A18,\"#.00\"))","v":"Rupees  One Shankh Eighty Four Neel Thirty Kharab Sixteen Arab Twenty Crore Nineteen Lakh  Only"}]
[1.4003067000801999E+18,{"$f":"AdvancedWord(TEXT(A19,\"#.00\"))","v":"Rupees Fourteen Shankh Thirty Neel Sixty Seven Kharab  Eight Crore  Two Lakh  Only"}]
[1.0700830230004699E+19,{"$f":"AdvancedWord(TEXT(A20,\"#.00\"))","v":"Digit exceeds Maximum limit"}]